[Event "Titled Tuesday Blitz May 31 Early 2022"]
[White "Drygalov, Sergey"]
[Black "Bethke, Richard"]
[WhiteFideId "24171743"]
[BlackFideId "12959243"]
[WhiteElo "2514"]
[BlackElo "2470"]
[Result "0-1"]
[Round "01"]
[TimeControl "180+1"]
[Date "2022.06.01"]
[WhiteClock "0:00:10"]
[BlackClock "0:00:13"]

1. d4 {[%clk 0:02:57]}  Nf6 {[%clk 0:02:59]} 2. c4 {[%clk 0:02:57]}  e6 {[%clk 0:02:59]} 3. Nf3 {[%clk 0:02:58]}  d5 {[%clk 0:03:00]} 4. Nc3 {[%clk 0:02:58]}  Be7 {[%clk 0:03:00]} 5. Bf4 {[%clk 0:02:59]}  O-O {[%clk 0:02:59]} 6. e3 {[%clk 0:02:59]}  c5 {[%clk 0:02:59]} 7. dxc5 {[%clk 0:02:57]}  Bxc5 {[%clk 0:02:59]} 8. a3 {[%clk 0:02:57]}  Nc6 {[%clk 0:02:51]} 9. Qc2 {[%clk 0:02:57]}  Qa5 {[%clk 0:02:29]} 10. Nd2 {[%clk 0:02:53]}  d4 {[%clk 0:02:25]} 11. Nb3 {[%clk 0:02:52]}  Qd8 {[%clk 0:02:16]} 12. Nxc5 {[%clk 0:02:49]}  dxc3 {[%clk 0:02:17]} 13. Qxc3 {[%clk 0:02:50]}  Qe7 {[%clk 0:02:12]} 14. Nd3 {[%clk 0:02:38]}  Ne4 {[%clk 0:02:08]} 15. Qc2 {[%clk 0:02:36]}  e5 {[%clk 0:02:03]} 16. Bg3 {[%clk 0:02:33]}  Bf5 {[%clk 0:01:59]} 17. Be2 {[%clk 0:02:31]}  Rfd8 {[%clk 0:01:57]} 18. O-O {[%clk 0:02:30]}  Nc5 {[%clk 0:01:48]} 19. Rfd1 {[%clk 0:02:23]}  Qd6 {[%clk 0:01:39]} 20. Nxc5 {[%clk 0:02:05]}  Bxc2 {[%clk 0:01:38]} 21. Rxd6 {[%clk 0:02:05]}  Rxd6 {[%clk 0:01:39]} 22. Bf3 {[%clk 0:01:46]}  b6 {[%clk 0:01:12]} 23. Ne4 {[%clk 0:01:42]}  Bxe4 {[%clk 0:01:07]} 24. Bxe4 {[%clk 0:01:43]}  Rad8 {[%clk 0:01:06]} 25. Bd5 {[%clk 0:01:34]}  Kf8 {[%clk 0:01:00]} 26. f4 {[%clk 0:01:32]}  Ne7 {[%clk 0:00:33]} 27. fxe5 {[%clk 0:01:28]}  Rg6 {[%clk 0:00:33]} 28. e4 {[%clk 0:01:27]}  Rg4 {[%clk 0:00:22]} 29. b3 {[%clk 0:01:22]}  b5 {[%clk 0:00:17]} 30. Re1 {[%clk 0:00:58]}  Nxd5 {[%clk 0:00:16]} 31. cxd5 {[%clk 0:00:58]}  Ke7 {[%clk 0:00:13]} 32. Kf2 {[%clk 0:00:54]}  Rc8 {[%clk 0:00:13]} 33. Kf3 {[%clk 0:00:51]}  h5 {[%clk 0:00:12]} 34. h3 {[%clk 0:00:48]}  Rc3+ {[%clk 0:00:11]} 35. Kf2 {[%clk 0:00:28]}  Rgxg3 {[%clk 0:00:12]} 36. Rd1 {[%clk 0:00:21]}  Rgd3 {[%clk 0:00:12]} 37. Re1 {[%clk 0:00:21]}  Rc2+ {[%clk 0:00:12]} 38. Kf1 {[%clk 0:00:20]}  Rdc3 {[%clk 0:00:11]} 39. d6+ {[%clk 0:00:03]}  Ke6 {[%clk 0:00:11]} 40. a4 {[%clk 0:00:03]}  Rc1 {[%clk 0:00:10]} 41. axb5 {[%clk 0:00:04]}  Rxe1+ {[%clk 0:00:11]} 42. Kxe1 {[%clk 0:00:05]}  Rxb3 {[%clk 0:00:11]} 43. Kd2 {[%clk 0:00:06]}  Rxb5 {[%clk 0:00:11]} 44. Kd3 {[%clk 0:00:07]}  Rxe5 {[%clk 0:00:12]} 45. Kd4 {[%clk 0:00:07]}  Kxd6 {[%clk 0:00:12]} 46. g4 {[%clk 0:00:07]}  hxg4 {[%clk 0:00:12]} 47. hxg4 {[%clk 0:00:08]}  a5 {[%clk 0:00:12]} 48. Kc4 {[%clk 0:00:09]}  Rxe4+ {[%clk 0:00:12]} 49. Kb5 {[%clk 0:00:10]}  Rxg4 {[%clk 0:00:12]} 50. Kxa5 {[%clk 0:00:10]}  Kc6 {[%clk 0:00:13]} 0-1


[Site "https://www.chess.com"]

[Event "Titled Tuesday Blitz May 31 Early 2022"]
[White "Estrada Nieto, Julian"]
[Black "Bacrot, Etienne"]
[WhiteFideId "5101018"]
[BlackFideId "605506"]
[WhiteElo "2252"]
[BlackElo "2673"]
[Result "0-1"]
[Round "01"]
[TimeControl "180+1"]
[Date "2022.05.31"]
[WhiteClock "0:00:04"]
[BlackClock "0:00:18"]

1. e4 {[%clk 0:03:00]}  c5 {[%clk 0:02:59]} 2. Nf3 {[%clk 0:03:00]}  d6 {[%clk 0:03:00]} 3. Bb5+ {[%clk 0:02:59]}  Nd7 {[%clk 0:02:59]} 4. d4 {[%clk 0:02:59]}  cxd4 {[%clk 0:02:59]} 5. Qxd4 {[%clk 0:03:00]}  Nf6 {[%clk 0:02:59]} 6. Bg5 {[%clk 0:02:58]}  a6 {[%clk 0:02:56]} 7. Bxd7+ {[%clk 0:02:58]}  Bxd7 {[%clk 0:02:57]} 8. Nc3 {[%clk 0:02:59]}  e6 {[%clk 0:02:55]} 9. O-O-O {[%clk 0:02:57]}  Be7 {[%clk 0:02:55]} 10. e5 {[%clk 0:02:55]}  dxe5 {[%clk 0:02:52]} 11. Nxe5 {[%clk 0:02:56]}  Bc6 {[%clk 0:02:38]} 12. Nxc6 {[%clk 0:02:56]}  bxc6 {[%clk 0:02:37]} 13. Bxf6 {[%clk 0:02:55]}  gxf6 {[%clk 0:02:25]} 14. Qc4 {[%clk 0:02:15]}  Qc7 {[%clk 0:02:16]} 15. Ne4 {[%clk 0:02:13]}  Rg8 {[%clk 0:02:09]} 16. g3 {[%clk 0:02:10]}  f5 {[%clk 0:01:50]} 17. Nc5 {[%clk 0:02:09]}  Qb6 {[%clk 0:01:43]} 18. Nd7 {[%clk 0:01:36]}  Qb5 {[%clk 0:01:33]} 19. Ne5 {[%clk 0:01:23]}  Rc8 {[%clk 0:01:13]} 20. Rhe1 {[%clk 0:01:12]}  Bf6 {[%clk 0:01:04]} 21. f4 {[%clk 0:01:11]}  Bxe5 {[%clk 0:01:03]} 22. Qxb5 {[%clk 0:01:10]}  Bxf4+ {[%clk 0:01:03]} 23. gxf4 {[%clk 0:01:10]}  axb5 {[%clk 0:01:02]} 24. Rg1 {[%clk 0:01:08]}  Ke7 {[%clk 0:01:01]} 25. Kd2 {[%clk 0:01:04]}  Rg4 {[%clk 0:00:53]} 26. Ke3 {[%clk 0:01:01]}  h5 {[%clk 0:00:52]} 27. h3 {[%clk 0:00:59]}  Rgg8 {[%clk 0:00:48]} 28. a3 {[%clk 0:00:49]}  Ra8 {[%clk 0:00:44]} 29. c3 {[%clk 0:00:47]}  h4 {[%clk 0:00:41]} 30. Kf3 {[%clk 0:00:44]}  Rgd8 {[%clk 0:00:36]} 31. Ke3 {[%clk 0:00:42]}  Rg8 {[%clk 0:00:34]} 32. Kf3 {[%clk 0:00:41]}  Rad8 {[%clk 0:00:34]} 33. Ke3 {[%clk 0:00:32]}  Rxd1 {[%clk 0:00:33]} 34. Rxg8 {[%clk 0:00:31]}  Rh1 {[%clk 0:00:33]} 35. Kd4 {[%clk 0:00:27]}  Rxh3 {[%clk 0:00:28]} 36. Kc5 {[%clk 0:00:26]}  Rh2 {[%clk 0:00:22]} 37. b4 {[%clk 0:00:23]}  Rc2 {[%clk 0:00:21]} 38. Kxc6 {[%clk 0:00:20]}  Rxc3+ {[%clk 0:00:21]} 39. Kxb5 {[%clk 0:00:20]}  Rxa3 {[%clk 0:00:22]} 40. Rh8 {[%clk 0:00:20]}  h3 {[%clk 0:00:21]} 41. Kc6 {[%clk 0:00:20]}  Rc3+ {[%clk 0:00:20]} 42. Kb6 {[%clk 0:00:19]}  Rc4 {[%clk 0:00:20]} 43. b5 {[%clk 0:00:18]}  Rxf4 {[%clk 0:00:19]} 44. Rxh3 {[%clk 0:00:18]}  Rb4 {[%clk 0:00:19]} 45. Kc6 {[%clk 0:00:17]}  Rc4+ {[%clk 0:00:18]} 46. Kb7 {[%clk 0:00:16]}  f4 {[%clk 0:00:19]} 47. b6 {[%clk 0:00:16]}  e5 {[%clk 0:00:19]} 48. Ka7 {[%clk 0:00:14]}  Ra4+ {[%clk 0:00:19]} 49. Kb8 {[%clk 0:00:14]}  Rb4 {[%clk 0:00:19]} 50. b7 {[%clk 0:00:13]}  e4 {[%clk 0:00:19]} 51. Rh4 {[%clk 0:00:12]}  e3 {[%clk 0:00:18]} 52. Kc7 {[%clk 0:00:07]}  e2 {[%clk 0:00:18]} 53. Rxf4 {[%clk 0:00:04]}  Rxf4 {[%clk 0:00:18]} 54. b8=Q {[%clk 0:00:04]}  Rc4+ {[%clk 0:00:18]} 0-1


[Site "https://www.chess.com"]

[Event "Titled Tuesday Blitz May 31 Early 2022"]
[White "Griffith, Kyron"]
[Black "Dilmukhametov, Artur"]
[WhiteFideId "2046318"]
[BlackFideId "24179922"]
[WhiteElo "2232"]
[BlackElo "2206"]
[Result "1-0"]
[Round "01"]
[TimeControl "180+1"]
[Date "2022.06.01"]
[WhiteClock "0:00:15"]
[BlackClock "0:00:01"]

1. e4 {[%clk 0:02:40]}  e6 {[%clk 0:02:57]} 2. d3 {[%clk 0:02:40]}  d5 {[%clk 0:02:57]} 3. Nd2 {[%clk 0:02:40]}  c5 {[%clk 0:02:56]} 4. Ngf3 {[%clk 0:02:40]}  Nc6 {[%clk 0:02:54]} 5. g3 {[%clk 0:02:41]}  Qb6 {[%clk 0:02:54]} 6. Bg2 {[%clk 0:02:40]}  Bd6 {[%clk 0:02:53]} 7. O-O {[%clk 0:02:39]}  Bc7 {[%clk 0:02:53]} 8. Re1 {[%clk 0:02:30]}  Nge7 {[%clk 0:02:49]} 9. exd5 {[%clk 0:02:09]}  exd5 {[%clk 0:02:36]} 10. c4 {[%clk 0:02:07]}  d4 {[%clk 0:02:34]} 11. Ng5 {[%clk 0:02:03]}  O-O {[%clk 0:02:30]} 12. Qh5 {[%clk 0:02:00]}  h6 {[%clk 0:02:26]} 13. Nge4 {[%clk 0:01:59]}  Bf5 {[%clk 0:02:23]} 14. Nb3 {[%clk 0:01:53]}  Rad8 {[%clk 0:02:15]} 15. Nbxc5 {[%clk 0:01:44]}  Bxe4 {[%clk 0:02:03]} 16. Nxe4 {[%clk 0:01:42]}  Ng6 {[%clk 0:01:56]} 17. a3 {[%clk 0:01:38]}  Nce5 {[%clk 0:01:53]} 18. Qe2 {[%clk 0:01:26]}  Qe6 {[%clk 0:01:29]} 19. Nc5 {[%clk 0:01:08]}  Qf6 {[%clk 0:01:22]} 20. b4 {[%clk 0:01:03]}  b6 {[%clk 0:01:15]} 21. Ne4 {[%clk 0:01:02]}  Qf5 {[%clk 0:01:11]} 22. Bb2 {[%clk 0:01:01]}  Ng4 {[%clk 0:01:07]} 23. h3 {[%clk 0:00:58]}  N4e5 {[%clk 0:01:00]} 24. f4 {[%clk 0:00:58]}  Nxf4 {[%clk 0:00:52]} 25. gxf4 {[%clk 0:00:57]}  Qxf4 {[%clk 0:00:52]} 26. Rf1 {[%clk 0:00:46]}  Qh4 {[%clk 0:00:30]} 27. Qf2 {[%clk 0:00:36]}  Qh5 {[%clk 0:00:27]} 28. Rad1 {[%clk 0:00:29]}  f5 {[%clk 0:00:25]} 29. Ng3 {[%clk 0:00:25]}  Qg5 {[%clk 0:00:20]} 30. Bd5+ {[%clk 0:00:23]}  Kh7 {[%clk 0:00:19]} 31. Qg2 {[%clk 0:00:22]}  Rf6 {[%clk 0:00:18]} 32. Ne2 {[%clk 0:00:17]}  Rg6 {[%clk 0:00:18]} 33. Qxg5 {[%clk 0:00:17]}  Rxg5+ {[%clk 0:00:18]} 34. Kf2 {[%clk 0:00:15]}  Ng6 {[%clk 0:00:17]} 35. Rg1 {[%clk 0:00:14]}  Nh4 {[%clk 0:00:17]} 36. Rxg5 {[%clk 0:00:14]}  hxg5 {[%clk 0:00:18]} 37. Rg1 {[%clk 0:00:13]}  f4 {[%clk 0:00:19]} 38. Be4+ {[%clk 0:00:12]}  Kh6 {[%clk 0:00:18]} 39. Rg4 {[%clk 0:00:12]}  Rf8 {[%clk 0:00:17]} 40. Nxd4 {[%clk 0:00:13]}  f3 {[%clk 0:00:15]} 41. Nxf3 {[%clk 0:00:12]}  Nxf3 {[%clk 0:00:15]} 42. Bxf3 {[%clk 0:00:13]}  Bd6 {[%clk 0:00:13]} 43. d4 {[%clk 0:00:13]}  Be7 {[%clk 0:00:12]} 44. c5 {[%clk 0:00:13]}  bxc5 {[%clk 0:00:12]} 45. dxc5 {[%clk 0:00:14]}  Bd8 {[%clk 0:00:11]} 46. Re4 {[%clk 0:00:14]}  Bc7 {[%clk 0:00:12]} 47. Kg2 {[%clk 0:00:14]}  Rf7 {[%clk 0:00:11]} 48. Bc1 {[%clk 0:00:15]}  Kg6 {[%clk 0:00:09]} 49. Rd4 {[%clk 0:00:14]}  Bf4 {[%clk 0:00:09]} 50. Bxf4 {[%clk 0:00:14]}  gxf4 {[%clk 0:00:09]} 51. Rd5 {[%clk 0:00:14]}  Kh7 {[%clk 0:00:08]} 52. Be4+ {[%clk 0:00:15]}  Kg8 {[%clk 0:00:07]} 53. Kf3 {[%clk 0:00:15]}  Kf8 {[%clk 0:00:04]} 54. Bg6 {[%clk 0:00:15]}  Re7 {[%clk 0:00:04]} 55. Rd8+ {[%clk 0:00:14]}  Re8 {[%clk 0:00:01]} 56. Rxe8# {[%clk 0:00:15]} 1-0


[Site "https://www.chess.com"]

[Event "Titled Tuesday Blitz May 31 Early 2022"]
[White "Guliev, Logman"]
[Black "Pichot, Alan"]
[WhiteFideId "13400061"]
[BlackFideId "110973"]
[WhiteElo "2128"]
[BlackElo "2579"]
[Result "0-1"]
[Round "01"]
[TimeControl "180+1"]
[Date "2022.05.31"]
[WhiteClock "0:00:05"]
[BlackClock "0:01:58"]

1. e4 {[%clk 0:02:58]}  c5 {[%clk 0:02:59]} 2. Nf3 {[%clk 0:02:57]}  d6 {[%clk 0:03:00]} 3. d4 {[%clk 0:02:57]}  cxd4 {[%clk 0:03:01]} 4. Nxd4 {[%clk 0:02:58]}  Nf6 {[%clk 0:03:01]} 5. Nc3 {[%clk 0:02:58]}  Nc6 {[%clk 0:03:02]} 6. Bg5 {[%clk 0:02:56]}  e6 {[%clk 0:03:02]} 7. Qd2 {[%clk 0:02:56]}  a6 {[%clk 0:03:02]} 8. O-O-O {[%clk 0:02:56]}  Be7 {[%clk 0:03:03]} 9. f3 {[%clk 0:02:54]}  Nxd4 {[%clk 0:03:03]} 10. Qxd4 {[%clk 0:02:53]}  b5 {[%clk 0:03:04]} 11. Kb1 {[%clk 0:02:52]}  Bb7 {[%clk 0:03:04]} 12. h4 {[%clk 0:02:53]}  Qc7 {[%clk 0:03:04]} 13. Be3 {[%clk 0:02:51]}  h5 {[%clk 0:02:48]} 14. Bg5 {[%clk 0:02:47]}  Rc8 {[%clk 0:02:46]} 15. Qd2 {[%clk 0:02:46]}  Bf8 {[%clk 0:02:42]} 16. Ne2 {[%clk 0:02:40]}  Nd7 {[%clk 0:02:42]} 17. Nd4 {[%clk 0:02:34]}  Ne5 {[%clk 0:02:42]} 18. Be2 {[%clk 0:02:24]}  Nc4 {[%clk 0:02:42]} 19. Bxc4 {[%clk 0:02:22]}  Qxc4 {[%clk 0:02:42]} 20. Rhe1 {[%clk 0:02:14]}  Qc5 {[%clk 0:02:33]} 21. f4 {[%clk 0:02:10]}  g6 {[%clk 0:02:20]} 22. Bf6 {[%clk 0:02:03]}  Rg8 {[%clk 0:02:21]} 23. f5 {[%clk 0:01:51]}  gxf5 {[%clk 0:02:20]} 24. exf5 {[%clk 0:01:38]}  Rxg2 {[%clk 0:02:16]} 25. Re2 {[%clk 0:01:21]}  Rxe2 {[%clk 0:02:15]} 26. Qxe2 {[%clk 0:01:20]}  e5 {[%clk 0:02:15]} 27. Nb3 {[%clk 0:00:45]}  Qc4 {[%clk 0:02:14]} 28. Qd2 {[%clk 0:00:27]}  Be4 {[%clk 0:02:12]} 29. Rc1 {[%clk 0:00:24]}  Bxf5 {[%clk 0:02:12]} 30. Na5 {[%clk 0:00:22]}  Qe6 {[%clk 0:02:08]} 31. Qg5 {[%clk 0:00:19]}  Bg6 {[%clk 0:02:05]} 32. b3 {[%clk 0:00:18]}  Bh6 {[%clk 0:02:03]} 33. Qxh6 {[%clk 0:00:16]}  Qxf6 {[%clk 0:02:03]} 34. Nb7 {[%clk 0:00:15]}  Rxc2 {[%clk 0:02:00]} 35. Nxd6+ {[%clk 0:00:05]}  Kd7 {[%clk 0:01:58]} 0-1


[Site "https://www.chess.com"]

[Event "Titled Tuesday Blitz May 31 Early 2022"]
[White "Guseinov, Gadir"]
[Black "Neelotpal, Das"]
[WhiteFideId "13401378"]
[BlackFideId "5003512"]
[WhiteElo "2581"]
[BlackElo "2405"]
[Result "1-0"]
[Round "01"]
[TimeControl "180+1"]
[Date "2022.06.01"]
[WhiteClock "0:00:15"]
[BlackClock "0:00:06"]

1. e4 {[%clk 0:03:00]}  e5 {[%clk 0:03:00]} 2. Nf3 {[%clk 0:03:00]}  Nc6 {[%clk 0:03:00]} 3. Bb5 {[%clk 0:02:59]}  Nf6 {[%clk 0:03:00]} 4. O-O {[%clk 0:02:56]}  Nxe4 {[%clk 0:03:00]} 5. d4 {[%clk 0:02:57]}  Nd6 {[%clk 0:02:59]} 6. dxe5 {[%clk 0:02:56]}  Nxb5 {[%clk 0:02:58]} 7. a4 {[%clk 0:02:56]}  Nbd4 {[%clk 0:02:58]} 8. Nxd4 {[%clk 0:02:55]}  Nxd4 {[%clk 0:02:58]} 9. Qxd4 {[%clk 0:02:55]}  d5 {[%clk 0:02:59]} 10. Qd3 {[%clk 0:02:51]}  c6 {[%clk 0:02:47]} 11. a5 {[%clk 0:02:51]}  Qd7 {[%clk 0:02:45]} 12. f4 {[%clk 0:02:42]}  Qf5 {[%clk 0:02:45]} 13. Qc3 {[%clk 0:02:42]}  Be7 {[%clk 0:02:27]} 14. Be3 {[%clk 0:02:38]}  O-O {[%clk 0:02:24]} 15. Nd2 {[%clk 0:02:29]}  Qg6 {[%clk 0:02:21]} 16. Nb3 {[%clk 0:02:25]}  Bf5 {[%clk 0:02:16]} 17. Bc5 {[%clk 0:02:05]}  Be4 {[%clk 0:01:56]} 18. Rf2 {[%clk 0:02:01]}  Bh4 {[%clk 0:01:57]} 19. Re2 {[%clk 0:01:49]}  Rfe8 {[%clk 0:01:56]} 20. Rf1 {[%clk 0:01:46]}  f6 {[%clk 0:01:55]} 21. Bd4 {[%clk 0:01:19]}  b6 {[%clk 0:01:39]} 22. Qxc6 {[%clk 0:01:03]}  Rac8 {[%clk 0:01:31]} 23. Qd7 {[%clk 0:01:03]}  fxe5 {[%clk 0:01:23]} 24. Bxe5 {[%clk 0:01:01]}  Bxc2 {[%clk 0:01:01]} 25. Qxd5+ {[%clk 0:00:52]}  Qf7 {[%clk 0:01:01]} 26. Qxf7+ {[%clk 0:00:46]}  Kxf7 {[%clk 0:01:01]} 27. Re3 {[%clk 0:00:42]}  bxa5 {[%clk 0:00:52]} 28. Nxa5 {[%clk 0:00:40]}  Bd8 {[%clk 0:00:52]} 29. Nb7 {[%clk 0:00:35]}  Bb6 {[%clk 0:00:50]} 30. Nd6+ {[%clk 0:00:35]}  Kg8 {[%clk 0:00:41]} 31. Re1 {[%clk 0:00:24]}  g5 {[%clk 0:00:21]} 32. Nxc8 {[%clk 0:00:20]}  Bxe3+ {[%clk 0:00:19]} 33. Rxe3 {[%clk 0:00:19]}  gxf4 {[%clk 0:00:19]} 34. Nd6 {[%clk 0:00:16]}  fxe3 {[%clk 0:00:12]} 35. Nxe8 {[%clk 0:00:16]}  Kf7 {[%clk 0:00:12]} 36. Nc7 {[%clk 0:00:15]}  Bd3 {[%clk 0:00:11]} 37. Bd4 {[%clk 0:00:14]}  e2 {[%clk 0:00:11]} 38. Kf2 {[%clk 0:00:15]}  a6 {[%clk 0:00:09]} 39. Nd5 {[%clk 0:00:15]}  Bb5 {[%clk 0:00:06]} 40. Nf4 {[%clk 0:00:15]} 1-0


[Site "https://www.chess.com"]

[Event "Titled Tuesday Blitz May 31 Early 2022"]
[White "Manukian, Artak"]
[Black "Fedoseev, Vladimir"]
[WhiteFideId "13301373"]
[BlackFideId "24130737"]
[WhiteElo "2533"]
[BlackElo "2726"]
[Result "0-1"]
[Round "01"]
[TimeControl "180+1"]
[Date "2022.05.31"]
[WhiteClock "0:00:01"]
[BlackClock "0:00:06"]

1. e4 {[%clk 0:02:59]}  c6 {[%clk 0:03:00]} 2. d4 {[%clk 0:02:58]}  d5 {[%clk 0:03:01]} 3. e5 {[%clk 0:02:58]}  c5 {[%clk 0:03:01]} 4. dxc5 {[%clk 0:02:57]}  e6 {[%clk 0:03:01]} 5. a3 {[%clk 0:02:49]}  Bxc5 {[%clk 0:02:59]} 6. b4 {[%clk 0:02:43]}  Bb6 {[%clk 0:02:56]} 7. c4 {[%clk 0:02:42]}  Ne7 {[%clk 0:02:54]} 8. Nc3 {[%clk 0:02:36]}  Nbc6 {[%clk 0:02:49]} 9. c5 {[%clk 0:02:29]}  Bc7 {[%clk 0:02:47]} 10. f4 {[%clk 0:02:28]}  a6 {[%clk 0:02:45]} 11. Nf3 {[%clk 0:02:28]}  b6 {[%clk 0:02:43]} 12. Be3 {[%clk 0:02:27]}  Nf5 {[%clk 0:02:36]} 13. Bf2 {[%clk 0:02:25]}  bxc5 {[%clk 0:02:31]} 14. Bxc5 {[%clk 0:02:20]}  Bb6 {[%clk 0:02:28]} 15. Na4 {[%clk 0:02:15]}  Bxc5 {[%clk 0:02:27]} 16. Nxc5 {[%clk 0:02:16]}  Qb6 {[%clk 0:02:26]} 17. Bd3 {[%clk 0:02:13]}  Ne3 {[%clk 0:02:06]} 18. Qe2 {[%clk 0:02:10]}  Nc4 {[%clk 0:01:57]} 19. Bxc4 {[%clk 0:02:09]}  dxc4 {[%clk 0:01:58]} 20. Qxc4 {[%clk 0:02:08]}  O-O {[%clk 0:01:48]} 21. O-O {[%clk 0:02:02]}  Ne7 {[%clk 0:01:46]} 22. Ng5 {[%clk 0:01:56]}  h6 {[%clk 0:01:41]} 23. Ne4 {[%clk 0:01:54]}  Nd5 {[%clk 0:01:42]} 24. Qd4 {[%clk 0:01:44]}  a5 {[%clk 0:01:40]} 25. Nb3 {[%clk 0:01:38]}  Qxd4+ {[%clk 0:01:33]} 26. Nxd4 {[%clk 0:01:39]}  axb4 {[%clk 0:01:30]} 27. axb4 {[%clk 0:01:40]}  Rxa1 {[%clk 0:01:30]} 28. Rxa1 {[%clk 0:01:41]}  Nxb4 {[%clk 0:01:23]} 29. Ra8 {[%clk 0:01:35]}  Bb7 {[%clk 0:01:21]} 30. Rxf8+ {[%clk 0:01:35]}  Kxf8 {[%clk 0:01:22]} 31. Nd6 {[%clk 0:01:35]}  Bd5 {[%clk 0:01:22]} 32. g3 {[%clk 0:01:34]}  Nd3 {[%clk 0:01:21]} 33. N6b5 {[%clk 0:01:29]}  g5 {[%clk 0:01:19]} 34. Ne2 {[%clk 0:01:21]}  Kg7 {[%clk 0:01:16]} 35. Nbc3 {[%clk 0:01:17]}  Bb7 {[%clk 0:01:14]} 36. Nb5 {[%clk 0:00:55]}  Kg6 {[%clk 0:01:12]} 37. Nd6 {[%clk 0:00:50]}  Bd5 {[%clk 0:01:04]} 38. h3 {[%clk 0:00:43]}  Ba8 {[%clk 0:00:48]} 39. Kh2 {[%clk 0:00:41]}  Bf3 {[%clk 0:00:45]} 40. Nd4 {[%clk 0:00:41]}  Bd1 {[%clk 0:00:45]} 41. fxg5 {[%clk 0:00:40]}  hxg5 {[%clk 0:00:43]} 42. Nc4 {[%clk 0:00:40]}  g4 {[%clk 0:00:29]} 43. hxg4 {[%clk 0:00:39]}  Bxg4 {[%clk 0:00:30]} 44. Kg2 {[%clk 0:00:36]}  Kg5 {[%clk 0:00:29]} 45. Nf3+ {[%clk 0:00:33]}  Kf5 {[%clk 0:00:20]} 46. Nd6+ {[%clk 0:00:29]}  Kg6 {[%clk 0:00:20]} 47. Nc4 {[%clk 0:00:29]}  Kg7 {[%clk 0:00:17]} 48. Nd4 {[%clk 0:00:23]}  Kf8 {[%clk 0:00:17]} 49. Nf3 {[%clk 0:00:14]}  Ke7 {[%clk 0:00:17]} 50. Nh2 {[%clk 0:00:13]}  Bh5 {[%clk 0:00:15]} 51. g4 {[%clk 0:00:13]}  Bg6 {[%clk 0:00:14]} 52. Kf3 {[%clk 0:00:13]}  Kd7 {[%clk 0:00:13]} 53. Nf1 {[%clk 0:00:11]}  Kc6 {[%clk 0:00:13]} 54. Nfe3 {[%clk 0:00:09]}  Kc5 {[%clk 0:00:13]} 55. g5 {[%clk 0:00:08]}  Kd4 {[%clk 0:00:12]} 56. Nd6 {[%clk 0:00:06]}  Nxe5+ {[%clk 0:00:12]} 57. Kf4 {[%clk 0:00:07]}  Nd3+ {[%clk 0:00:12]} 58. Kf3 {[%clk 0:00:07]}  Ne1+ {[%clk 0:00:11]} 59. Kf2 {[%clk 0:00:06]}  Nd3+ {[%clk 0:00:12]} 60. Kf3 {[%clk 0:00:06]}  Nc5 {[%clk 0:00:11]} 61. Ng4 {[%clk 0:00:05]}  Bh5 {[%clk 0:00:11]} 62. Kf4 {[%clk 0:00:05]}  Nd3+ {[%clk 0:00:10]} 63. Kg3 {[%clk 0:00:05]}  Kd5 {[%clk 0:00:10]} 64. Nf6+ {[%clk 0:00:03]}  Kxd6 {[%clk 0:00:09]} 65. Nxh5 {[%clk 0:00:04]}  Ke5 {[%clk 0:00:10]} 66. Kg4 {[%clk 0:00:04]}  Nf2+ {[%clk 0:00:09]} 67. Kg3 {[%clk 0:00:04]}  Ne4+ {[%clk 0:00:09]} 68. Kg4 {[%clk 0:00:05]}  Nd6 {[%clk 0:00:07]} 69. Ng3 {[%clk 0:00:04]}  Nc4 {[%clk 0:00:06]} 70. Ne2 {[%clk 0:00:03]}  Ne3+ {[%clk 0:00:05]} 71. Kh5 {[%clk 0:00:03]}  Nd5 {[%clk 0:00:05]} 72. Ng3 {[%clk 0:00:03]}  Nf4+ {[%clk 0:00:05]} 73. Kg4 {[%clk 0:00:02]}  Ng6 {[%clk 0:00:05]} 74. Nh5 {[%clk 0:00:02]}  Kd4 {[%clk 0:00:05]} 75. Nf6 {[%clk 0:00:03]}  e5 {[%clk 0:00:04]} 76. Kf5 {[%clk 0:00:03]}  Nh4+ {[%clk 0:00:04]} 77. Kg4 {[%clk 0:00:03]}  Ng6 {[%clk 0:00:05]} 78. Kf5 {[%clk 0:00:03]}  Ne7+ {[%clk 0:00:05]} 79. Kg4 {[%clk 0:00:04]}  e4 {[%clk 0:00:06]} 80. Nh5 {[%clk 0:00:01]}  e3 {[%clk 0:00:06]} 81. Kf3 {[%clk 0:00:02]}  Nd5 {[%clk 0:00:06]} 82. Ke2 {[%clk 0:00:01]}  Ke4 {[%clk 0:00:06]} 0-1


[Site "https://www.chess.com"]

[Event "Titled Tuesday Blitz May 31 Early 2022"]
[White "Mikhalsky, Vladimir"]
[Black "Meshkovs, Nikita"]
[WhiteFideId "14144352"]
[BlackFideId "11602740"]
[WhiteElo "2301"]
[BlackElo "2506"]
[Result "0-1"]
[Round "01"]
[TimeControl "180+1"]
[Date "2022.06.01"]
[WhiteClock "0:00:01"]
[BlackClock "0:00:10"]

1. c4 {[%clk 0:02:57]}  Nf6 {[%clk 0:02:59]} 2. Nc3 {[%clk 0:02:53]}  e6 {[%clk 0:02:56]} 3. e4 {[%clk 0:02:53]}  d5 {[%clk 0:02:53]} 4. e5 {[%clk 0:02:53]}  d4 {[%clk 0:02:44]} 5. exf6 {[%clk 0:02:52]}  dxc3 {[%clk 0:02:44]} 6. bxc3 {[%clk 0:02:52]}  Qxf6 {[%clk 0:02:43]} 7. d4 {[%clk 0:02:52]}  b6 {[%clk 0:02:38]} 8. Nf3 {[%clk 0:02:41]}  Bb7 {[%clk 0:02:32]} 9. Bd3 {[%clk 0:02:34]}  Nd7 {[%clk 0:02:10]} 10. Bg5 {[%clk 0:02:18]}  Bxf3 {[%clk 0:02:09]} 11. Qd2 {[%clk 0:02:15]}  Bxg2 {[%clk 0:02:03]} 12. Bxf6 {[%clk 0:02:14]}  Nxf6 {[%clk 0:02:02]} 13. Rg1 {[%clk 0:02:10]}  Bc6 {[%clk 0:02:00]} 14. d5 {[%clk 0:01:50]}  exd5 {[%clk 0:01:54]} 15. Qe2+ {[%clk 0:01:40]}  Be7 {[%clk 0:01:49]} 16. Rxg7 {[%clk 0:01:38]}  Kf8 {[%clk 0:01:45]} 17. Rg3 {[%clk 0:01:34]}  Bc5 {[%clk 0:01:32]} 18. O-O-O {[%clk 0:01:22]}  Re8 {[%clk 0:01:33]} 19. Qf3 {[%clk 0:01:20]}  Re6 {[%clk 0:01:33]} 20. Qf4 {[%clk 0:00:59]}  Nh5 {[%clk 0:01:25]} 21. Qxc7 {[%clk 0:00:53]}  Nxg3 {[%clk 0:01:25]} 22. fxg3 {[%clk 0:00:47]}  Kg7 {[%clk 0:01:22]} 23. Bf5 {[%clk 0:00:43]}  Rf6 {[%clk 0:01:15]} 24. cxd5 {[%clk 0:00:43]}  Ba4 {[%clk 0:01:11]} 25. Rf1 {[%clk 0:00:40]}  Re8 {[%clk 0:01:03]} 26. Kb2 {[%clk 0:00:38]}  Re2+ {[%clk 0:01:02]} 27. Ka1 {[%clk 0:00:38]}  Ba3 {[%clk 0:00:55]} 28. Qc4 {[%clk 0:00:35]}  Re5 {[%clk 0:00:30]} 29. Qxa4 {[%clk 0:00:33]}  Rfxf5 {[%clk 0:00:30]} 30. Rd1 {[%clk 0:00:21]}  Bd6 {[%clk 0:00:26]} 31. Qg4+ {[%clk 0:00:20]}  Kf8 {[%clk 0:00:24]} 32. Qd4 {[%clk 0:00:20]}  Re2 {[%clk 0:00:17]} 33. Qh8+ {[%clk 0:00:18]}  Ke7 {[%clk 0:00:17]} 34. Qxh7 {[%clk 0:00:16]}  Rff2 {[%clk 0:00:16]} 35. Qb1 {[%clk 0:00:14]}  Ba3 {[%clk 0:00:15]} 36. Qb3 {[%clk 0:00:12]}  Bd6 {[%clk 0:00:12]} 37. a4 {[%clk 0:00:11]}  Kd8 {[%clk 0:00:10]} 38. a5 {[%clk 0:00:11]}  bxa5 {[%clk 0:00:10]} 39. c4 {[%clk 0:00:12]}  Be5+ {[%clk 0:00:10]} 40. Kb1 {[%clk 0:00:12]}  Rb2+ {[%clk 0:00:10]} 41. Qxb2 {[%clk 0:00:11]}  Rxb2+ {[%clk 0:00:11]} 42. Kc1 {[%clk 0:00:12]}  Rb4 {[%clk 0:00:12]} 43. Re1 {[%clk 0:00:11]}  Rxc4+ {[%clk 0:00:12]} 44. Kd2 {[%clk 0:00:11]}  f6 {[%clk 0:00:13]} 45. Rb1 {[%clk 0:00:10]}  a4 {[%clk 0:00:12]} 46. Kd3 {[%clk 0:00:10]}  Rc5 {[%clk 0:00:12]} 47. Ke4 {[%clk 0:00:10]}  a3 {[%clk 0:00:12]} 48. Rb7 {[%clk 0:00:01]}  Ra5 {[%clk 0:00:10]} 0-1


[Site "https://www.chess.com"]